fUST/lending_fUST_20250404
["ID","MTS","AMOUNT","RATE_DAILY","PERIOD"]
[357083163,1743700246276,-836.83518334,0.00014998,2]
[357083164,1743700246286,-500.0,0.00014998,2]
[357083165,1743700246295,-500.0,0.00014998,2]
[357083166,1743700246306,-500.0,0.00014998,2]
[357083167,1743700246315,-500.0,0.00014998,2]
[357083168,1743700246325,-536.59,0.00014998,2]
[357083170,1743700246334,-500.0,0.00014998,2]
[357083172,1743700246344,-513.62,0.00014998,2]
[357083174,1743700246354,-1083.84,0.00014998,2]
[357083175,1743700246363,-500.0,0.00014998,2]
[357083176,1743700246373,-186.48987958,0.00014998,2]
[357083177,1743700246382,-658.29,0.00014998,2]
[357083178,1743700246392,-500.0,0.00014998,2]
[357083179,1743700246402,-590.88,0.00014998,2]
[357083180,1743700246411,-500.0,0.00014999,2]
[357083181,1743700246421,-501.79028504,0.00014999,2]
[357083182,1743700246431,-117.60600944,0.00014999,2]
[357083188,1743700470183,585.55,0.00010959,2]
[357083193,1743700814251,160.9,0.00015,3]
[357083274,1743701438381,-300.97762833,0.00014022,2]
[357083275,1743701438395,-830.16435131,0.00014022,2]
[357083285,1743701440803,-751.2331172,0.00014022,2]
[357083286,1743701440812,-300.0,0.0001412,2]
[357083287,1743701440822,-161.0,0.0001412,2]
[357083288,1743701440832,-500.0,0.00014121,2]
[357083289,1743701440842,-500.0,0.00014121,2]
[357083290,1743701440851,-633.7,0.00014121,2]
[357083291,1743701440861,-500.0,0.00014121,2]
[357083292,1743701440871,-500.0,0.00014121,2]
[357083293,1743701440881,-500.0,0.00014121,2]
[357083294,1743701440890,-611.32,0.00014122,2]
[357083295,1743701440900,-970.96,0.00014122,2]
[357083296,1743701440910,-500.0,0.00014122,2]
[357083297,1743701440919,-500.0,0.00014122,2]
[357083298,1743701440929,-708.35,0.00014122,2]
[357083299,1743701440939,-500.0,0.00014122,2]
[357083300,1743701440949,-500.0,0.00014122,2]
[357083301,1743701440958,-500.0,0.00014122,2]
[357083302,1743701440968,-1990.42,0.00014122,2]
[357083303,1743701440978,-500.0,0.00014122,2]
[357083304,1743701440988,-500.0,0.00014122,2]
[357083305,1743701440997,-268.86338309,0.00014122,2]
[357083308,1743701441009,-231.13661691,0.00014122,2]
[357083310,1743701441018,-500.0,0.00014122,2]
[357083311,1743701441028,-500.0,0.00014122,2]
[357083314,1743701441037,-500.0,0.00014122,2]
[357083316,1743701441047,-504.55,0.00014122,2]
[357083317,1743701441058,-1017.59,0.00014122,2]
[357083319,1743701441068,-500.0,0.00014122,2]
[357083321,1743701441077,-500.0,0.00014122,2]
[357083322,1743701441086,-500.0,0.00014122,2]
[357083323,1743701441096,-500.0,0.00014122,2]
[357083324,1743701441105,-894.37987676,0.00014122,2]
[357083325,1743701441117,-623.85012324,0.00014122,2]
[357083326,1743701441127,-708.92,0.00014122,2]
[357083327,1743701441136,-941.56,0.00014122,2]
[357083328,1743701441146,-500.0,0.00014123,2]
[357083329,1743701441155,-119.86083868,0.00014123,2]
[357083330,1743701441167,-380.13916132,0.00014123,2]
[357083331,1743701441176,-500.0,0.00014123,2]
[357083332,1743701441186,-500.0,0.00014123,2]
[357083333,1743701441195,-500.0,0.00014123,2]
[357083334,1743701441205,-62.07445153,0.00014123,2]
[357083361,1743701443460,-489.43114169,0.00014122,2]
[357083362,1743701443518,-1509.30885831,0.00014122,2]
[357083363,1743701443529,-437.92554847,0.00014123,2]
[357083364,1743701443539,-500.0,0.00014123,2]
[357083365,1743701443549,-500.0,0.00014123,2]
[357083366,1743701443559,-500.0,0.00014123,2]
[357083367,1743701443568,-500.0,0.00014123,2]
[357083368,1743701443578,-500.0,0.00014123,2]
[357083369,1743701443587,-500.0,0.00014123,2]
[357083370,1743701443597,-1074.63,0.00014123,2]
[357083372,1743701443607,-410.86742275,0.00014123,2]
[357083374,1743701443616,-830.92,0.00014123,2]
[357083375,1743701443626,-500.0,0.00014123,2]
[357083377,1743701443635,-4258.83,0.00014123,2]
[357083378,1743701443645,-167.26495432,0.00014123,2]
[357083379,1743701443655,-500.0,0.00014123,2]
[357083380,1743701443665,-514.23,0.00014123,2]
[357083381,1743701443675,-500.0,0.00014123,2]
[357083382,1743701443685,-500.0,0.00014123,2]
[357083383,1743701443694,-1038.68,0.00014123,2]
[357083384,1743701443704,-630.86,0.00014123,2]
[357083385,1743701443714,-566.26,0.00014123,2]
[357083386,1743701443724,-500.0,0.00014124,2]
[357083387,1743701443734,-500.0,0.00014124,2]
[357083388,1743701443743,-607.88,0.00014124,2]
[357083389,1743701443753,-1030.71,0.00014124,2]
[357083390,1743701443763,-857.76,0.00014124,2]
[357083391,1743701443773,-719.72,0.00014124,2]
[357083392,1743701443783,-500.0,0.00014124,2]
[357083393,1743701443793,-298.01154635,0.00014124,2]
[357083394,1743701443803,-707.81,0.00014124,2]
[357083395,1743701443813,-500.0,0.00014395,2]
[357083396,1743701443824,-500.0,0.00014395,2]
[357083397,1743701443833,-633.7,0.00014395,2]
[357083398,1743701443846,-500.0,0.00014395,2]
[357083399,1743701443855,-500.0,0.00014395,2]
[357083400,1743701443865,-590.46,0.00014395,2]
[357083401,1743701443874,-611.32,0.00014396,2]
[357083402,1743701443884,-970.96,0.00014396,2]
[357083403,1743701443893,-500.0,0.00014396,2]
[357083404,1743701443903,-500.0,0.00014396,2]
[357083405,1743701443913,-326.25867967,0.00014396,2]
[357083406,1743701443922,-708.35,0.00014396,2]
[357083407,1743701443932,-500.0,0.00014396,2]
[357083408,1743701443941,-500.0,0.00014396,2]
[357083409,1743701443951,-1990.42,0.00014396,2]
[357083410,1743701443961,-500.0,0.00014396,2]
[357083411,1743701443971,-500.0,0.00014396,2]
[357083412,1743701443981,-500.0,0.00014396,2]
[357083413,1743701443991,-500.0,0.00014396,2]
[357083414,1743701444000,-542.03492695,0.00014396,2]
[357083415,1743701444009,-500.0,0.00014396,2]
[357083416,1743701444020,-504.55,0.00014396,2]
[357083417,1743701444030,-1017.59,0.00014396,2]
[357083418,1743701444039,-500.0,0.00014396,2]
[357083419,1743701444049,-500.0,0.00014396,2]
[357083420,1743701444059,-500.0,0.00014396,2]
[357083421,1743701444069,-500.0,0.00014396,2]
[357083422,1743701444078,-1518.23,0.00014396,2]
[357083423,1743701444087,-708.92,0.00014396,2]
[357083425,1743701444097,-941.56,0.00014396,2]
[357083426,1743701444106,-1998.74,0.00014396,2]
[357083427,1743701444115,-500.0,0.00014397,2]
[357083428,1743701444124,-500.0,0.00014397,2]
[357083429,1743701444133,-265.81815763,0.00014397,2]
[357083441,1743701446562,-340.50948819,0.00014397,2]
[357083442,1743701446572,-1008.33,0.00014397,2]
[357083443,1743701446582,-500.0,0.00014397,2]
[357083444,1743701446591,-338.20678313,0.00014397,2]
[357083445,1743701446601,-500.0,0.00014397,2]
[357083446,1743701446611,-500.0,0.00014397,2]
[357083447,1743701446621,-224.47852107,0.00014397,2]
[357083450,1743701663072,180.0,0.00025,100]
[357083451,1743701952566,9054.5650317,0.0001319,2]
[357083452,1743702046167,175.21,0.00010959,2]
[357083453,1743702056778,876.06,0.00010959,2]
[357083454,1743702072313,154.541343,0.00025,30]
[357083455,1743702161231,1000.0,0.0002,120]
[357083494,1743702632739,-1647.07820977,0.00014019,2]
[357083495,1743702632750,-300.0,0.00014118,2]
[357083496,1743702632760,-23632.18727605,0.00014119,2]
[357083497,1743702632770,-500.0,0.00014119,2]
[357083498,1743702632780,-560.38,0.00014119,2]
[357083499,1743702632789,-242.95021931,0.00014119,2]
[357083500,1743702632847,-647.09978069,0.00014119,2]
[357083501,1743702632858,-638.54,0.00014119,2]
[357083502,1743702632867,-500.0,0.00014119,2]
[357083503,1743702632876,-500.0,0.00014119,2]
[357083504,1743702632887,-500.0,0.00014119,2]
[357083505,1743702632896,-649.32,0.00014119,2]
[357083506,1743702632905,-1824.55,0.00014119,2]
[357083507,1743702632915,-500.0,0.00014119,2]
[357083508,1743702632928,-500.0,0.00014119,2]
[357083509,1743702632938,-500.0,0.00014119,2]
[357083510,1743702632947,-500.0,0.00014119,2]
[357083511,1743702632956,-500.0,0.00014119,2]
[357083512,1743702632966,-564.96,0.00014119,2]
[357083513,1743702632975,-500.0,0.00014119,2]
[357083514,1743702632984,-217.81095043,0.00014119,2]
[357083526,1743702638572,-363.08904957,0.00014119,2]
[357083527,1743702638582,-505.42,0.00014119,2]
[357083528,1743702638592,-500.0,0.00014119,2]
[357083529,1743702638601,-500.0,0.00014119,2]
[357083530,1743702638611,-953.63,0.00014119,2]
[357083531,1743702638621,-500.0,0.00014119,2]
[357083532,1743702638631,-500.0,0.00014119,2]
[357083533,1743702638640,-500.0,0.00014119,2]
[357083534,1743702638649,-500.0,0.00014119,2]
[357083535,1743702638658,-500.0,0.00014119,2]
[357083536,1743702638668,-500.0,0.00014119,2]
[357083537,1743702638677,-500.0,0.00014119,2]
[357083538,1743702638687,-1495.88,0.00014119,2]
[357083539,1743702638696,-649.85,0.00014119,2]
[357083540,1743702638706,-500.0,0.00014119,2]
[357083541,1743702638715,-500.0,0.00014119,2]
[357083542,1743702638724,-498.92912455,0.00014119,2]
[357083543,1743702638734,-863.09,0.00014119,2]
[357083544,1743702638743,-500.0,0.0001412,2]
[357083545,1743702638753,-500.0,0.0001412,2]
[357083546,1743702638762,-500.0,0.0001412,2]
[357083547,1743702638771,-500.0,0.0001412,2]
[357083548,1743702638781,-500.0,0.0001412,2]
[357083549,1743702638790,-500.0,0.0001412,2]
[357083550,1743702638799,-500.0,0.0001412,2]
[357083551,1743702638808,-500.0,0.0001412,2]
[357083552,1743702638817,-646.61687587,0.0001412,2]
[357083553,1743702638827,-500.0,0.0001412,2]
[357083554,1743702638836,-500.0,0.0001412,2]
[357083555,1743702638846,-1832.18,0.0001412,2]
[357083556,1743702638860,-500.0,0.0001412,2]
[357083557,1743702638869,-796.3,0.0001412,2]
[357083558,1743702638879,-500.0,0.0001412,2]
[357083559,1743702638888,-1029.85,0.0001412,2]
[357083560,1743702638898,-596.97,0.0001412,2]
[357083561,1743702638907,-995.4,0.0001412,2]
[357083562,1743702638917,-500.0,0.0001412,2]
[357083563,1743702638926,-4081.38,0.0001412,2]
[357083564,1743702638936,-575.56,0.0001412,2]
[357083565,1743702638945,-708.75,0.0001412,2]
[357083566,1743702638954,-500.0,0.0001412,2]
[357083567,1743702638964,-646.83,0.0001412,2]
[357083568,1743702638973,-500.0,0.00014121,2]
[357083569,1743702638982,-966.32,0.00014121,2]
[357083570,1743702638992,-500.0,0.00014121,2]
[357083571,1743702639002,-500.0,0.00014121,2]
[357083572,1743702639011,-159.77500182,0.00014121,2]
[357083573,1743702639020,-500.0,0.00014121,2]
[357083574,1743702639029,-500.0,0.00014121,2]
[357083575,1743702639039,-500.0,0.00014121,2]
[357083576,1743702639048,-500.0,0.00014121,2]
[357083577,1743702639057,-500.0,0.00014121,2]
[357083578,1743702639067,-603.7,0.00014121,2]
[357083579,1743702639076,-1091.93,0.00014121,2]
[357083580,1743702639093,-519.51009571,0.00014121,2]
[357083581,1743702639105,-931.43,0.00014121,2]
[357083582,1743702639115,-689.73,0.00014121,2]
[357083583,1743702639124,-500.0,0.00014121,2]
[357083584,1743702639134,-500.0,0.00014121,2]
[357083585,1743702639143,-500.0,0.00014121,2]
[357083586,1743702639153,-678.32,0.00014121,2]
[357083587,1743702639163,-560.38,0.00014393,2]
[357083588,1743702639172,-890.05,0.00014393,2]
[357083589,1743702639182,-638.54,0.00014393,2]
[357083590,1743702639191,-500.0,0.00014393,2]
[357083591,1743702639201,-500.0,0.00014393,2]
[357083592,1743702639210,-500.0,0.00014393,2]
[357083593,1743702639220,-649.32,0.00014393,2]
[357083594,1743702639230,-1824.55,0.00014393,2]
[357083595,1743702639239,-500.0,0.00014393,2]
[357083596,1743702639249,-500.0,0.00014393,2]
[357083597,1743702639259,-500.0,0.00014393,2]
[357083598,1743702639269,-500.0,0.00014393,2]
[357083599,1743702639278,-500.0,0.00014393,2]
[357083600,1743702639288,-564.96,0.00014393,2]
[357083601,1743702639297,-500.0,0.00014393,2]
[357083602,1743702639306,-580.9,0.00014393,2]
[357083603,1743702639315,-505.42,0.00014393,2]
[357083604,1743702639325,-500.0,0.00014393,2]
[357083605,1743702639335,-953.63,0.00014393,2]
[357083606,1743702639345,-500.0,0.00014393,2]
[357083607,1743702639355,-500.0,0.00014393,2]
[357083608,1743702639364,-500.0,0.00014393,2]
[357083609,1743702639374,-500.0,0.00014393,2]
[357083610,1743702639383,-500.0,0.00014393,2]
[357083611,1743702639393,-500.0,0.00014393,2]
[357083612,1743702639403,-1495.88,0.00014393,2]
[357083613,1743702639413,-649.85,0.00014393,2]
[357083614,1743702639423,-863.09,0.00014393,2]
[357083615,1743702639434,-500.0,0.00014394,2]
[357083616,1743702639444,-500.0,0.00014394,2]
[357083617,1743702639454,-151.46521678,0.00014394,2]
[357083618,1743702639464,-500.0,0.00014394,2]
[357083619,1743702639474,-500.0,0.00014394,2]
[357083620,1743702639484,-500.0,0.00014394,2]
[357083621,1743702639494,-500.0,0.00014394,2]
[357083622,1743702639504,-500.0,0.00014394,2]
[357083623,1743702639514,-500.0,0.00014394,2]
[357083624,1743702639523,-1832.18,0.00014394,2]
[357083625,1743702639532,-500.0,0.00014394,2]
[357083626,1743702639542,-796.3,0.00014394,2]
[357083627,1743702639551,-500.0,0.00014394,2]
[357083628,1743702639561,-1029.85,0.00014394,2]
[357083629,1743702639571,-596.97,0.00014394,2]
[357083630,1743702639581,-995.4,0.00014394,2]
[357083631,1743702639591,-500.0,0.00014394,2]
[357083632,1743702639601,-4081.38,0.00014394,2]
[357083633,1743702639612,-575.56,0.00014394,2]
[357083634,1743702639621,-708.75,0.00014394,2]
[357083635,1743702639631,-500.0,0.00014394,2]
[357083636,1743702639640,-646.83,0.00014394,2]
[357083637,1743702639650,-500.0,0.00014395,2]
[357083638,1743702639660,-966.32,0.00014395,2]
[357083639,1743702639670,-500.0,0.00014395,2]
[357083640,1743702639679,-500.0,0.00014395,2]
[357083641,1743702639689,-500.0,0.00014395,2]
[357083642,1743702639698,-500.0,0.00014395,2]
[357083643,1743702639711,-500.0,0.00014395,2]
[357083644,1743702639721,-500.0,0.00014395,2]
[357083645,1743702639731,-603.7,0.00014395,2]
[357083646,1743702639741,-1091.93,0.00014395,2]
[357083647,1743702639751,-931.43,0.00014395,2]
[357083648,1743702639761,-689.73,0.00014395,2]
[357083649,1743702639771,-500.0,0.00014395,2]
[357083650,1743702639780,-258.12498179,0.00014395,2]
[357083651,1743702639790,-678.32,0.00014395,2]
[357083652,1743702639799,-152.0,0.00014634,2]
[357083653,1743702639809,-500.0,0.00014666,2]
[357083654,1743702639819,-500.0,0.00014666,2]
[357083655,1743702639829,-500.0,0.00014666,2]
[357083656,1743702639838,-500.0,0.00014666,2]
[357083657,1743702639850,-500.0,0.00014666,2]
[357083658,1743702639862,-513.330055,0.00014666,2]
[357083659,1743702639872,-560.38,0.00014667,2]
[357083660,1743702639881,-890.05,0.00014667,2]
[357083661,1743702639891,-638.54,0.00014667,2]
[357083662,1743702639900,-500.0,0.00014667,2]
[357083663,1743702639910,-500.0,0.00014667,2]
[357083664,1743702639920,-500.0,0.00014667,2]
[357083665,1743702639931,-649.32,0.00014667,2]
[357083666,1743702639940,-1824.55,0.00014667,2]
[357083667,1743702639949,-500.0,0.00014667,2]
[357083668,1743702639958,-500.0,0.00014667,2]
[357083669,1743702639968,-500.0,0.00014667,2]
[357083670,1743702639977,-500.0,0.00014667,2]
[357083671,1743702639987,-500.0,0.00014667,2]
[357083672,1743702639997,-564.96,0.00014667,2]
[357083673,1743702640007,-500.0,0.00014667,2]
[357083674,1743702640016,-580.9,0.00014667,2]
[357083675,1743702640025,-505.42,0.00014667,2]
[357083676,1743702640035,-500.0,0.00014667,2]
[357083677,1743702640045,-953.63,0.00014667,2]
[357083678,1743702640055,-500.0,0.00014667,2]
[357083679,1743702640065,-500.0,0.00014667,2]
[357083680,1743702640074,-500.0,0.00014667,2]
[357083681,1743702640083,-500.0,0.00014667,2]
[357083682,1743702640094,-500.0,0.00014667,2]
[357083684,1743702640104,-500.0,0.00014667,2]
[357083685,1743702640113,-1495.88,0.00014667,2]
[357083686,1743702640123,-649.85,0.00014667,2]
[357083687,1743702640132,-863.09,0.00014667,2]
[357083688,1743702640142,-500.0,0.00014668,2]
[357083689,1743702640151,-500.0,0.00014668,2]
[357083690,1743702640162,-500.0,0.00014668,2]
[357083691,1743702640172,-500.0,0.00014668,2]
[357083692,1743702640182,-500.0,0.00014668,2]
[357083693,1743702640192,-288.59197678,0.00014668,2]
[357083694,1743702640201,-500.0,0.00014668,2]
[357083695,1743702640211,-500.0,0.00014668,2]
[357083696,1743702640221,-1832.18,0.00014668,2]
[357083697,1743702640231,-500.0,0.00014668,2]
[357083698,1743702640241,-796.3,0.00014668,2]
[357083699,1743702640251,-500.0,0.00014668,2]
[357083700,1743702640261,-1029.85,0.00014668,2]
[357083701,1743702640270,-596.97,0.00014668,2]
[357083702,1743702640280,-995.4,0.00014668,2]
[357083703,1743702640290,-500.0,0.00014668,2]
[357083704,1743702640301,-4081.38,0.00014668,2]
[357083705,1743702640311,-575.56,0.00014668,2]
[357083706,1743702640320,-708.75,0.00014668,2]
[357083707,1743702640330,-500.0,0.00014668,2]
[357083708,1743702640340,-646.83,0.00014668,2]
[357083709,1743702640350,-500.0,0.00014669,2]
[357083710,1743702640360,-966.32,0.00014669,2]
[357083711,1743702640370,-500.0,0.00014669,2]
[357083712,1743702640379,-500.0,0.00014669,2]
[357083713,1743702640389,-500.0,0.00014669,2]
[357083714,1743702640399,-500.0,0.00014669,2]
[357083716,1743702640409,-500.0,0.00014669,2]
[357083717,1743702640420,-500.0,0.00014669,2]
[357083719,1743702640430,-603.7,0.00014669,2]
[357083720,1743702640440,-1091.93,0.00014669,2]
[357083721,1743702640451,-931.43,0.00014669,2]
[357083722,1743702640461,-689.73,0.00014669,2]
[357083723,1743702640471,-500.0,0.00014669,2]
[357083724,1743702640481,-678.32,0.00014669,2]
[357083725,1743702640491,-560.38,0.00014941,2]
[357083726,1743702640501,-890.05,0.00014941,2]
[357083727,1743702640511,-638.54,0.00014941,2]
[357083728,1743702640520,-500.0,0.00014941,2]
[357083729,1743702640530,-500.0,0.00014941,2]
[357083730,1743702640540,-264.3356738,0.00014941,2]
[357083731,1743702640550,-649.32,0.00014941,2]
[357083732,1743702640560,-1824.55,0.00014941,2]
[357083733,1743702640570,-500.0,0.00014941,2]
[357083734,1743702640580,-500.0,0.00014941,2]
[357083735,1743702640590,-500.0,0.00014941,2]
[357083736,1743702640600,-500.0,0.00014941,2]
[357083737,1743702640609,-500.0,0.00014941,2]
[357083738,1743702640619,-564.96,0.00014941,2]
[357083739,1743702640629,-500.0,0.00014941,2]
[357083740,1743702640638,-580.9,0.00014941,2]
[357083741,1743702640648,-505.42,0.00014941,2]
[357083742,1743702640657,-500.0,0.00014941,2]
[357083743,1743702640667,-953.63,0.00014941,2]
[357083744,1743702640677,-500.0,0.00014941,2]
[357083745,1743702640688,-500.0,0.00014941,2]
[357083747,1743702640699,-500.0,0.00014941,2]
[357083749,1743702640712,-500.0,0.00014941,2]
[357083750,1743702640723,-500.0,0.00014941,2]
[357083751,1743702640733,-500.0,0.00014941,2]
[357083752,1743702640745,-1495.88,0.00014941,2]
[357083754,1743702640760,-649.85,0.00014941,2]
[357083755,1743702640771,-863.09,0.00014941,2]
[357083756,1743702640782,-500.0,0.00014942,2]
[357083757,1743702640792,-500.0,0.00014942,2]
[357083758,1743702640802,-330.86543934,0.00014942,2]
[357083759,1743702640928,-169.13456066,0.00014942,2]
[357083760,1743702640937,-500.0,0.00014942,2]
[357083761,1743702640946,-500.0,0.00014942,2]
[357083762,1743702640956,-500.0,0.00014942,2]
[357083763,1743702640966,-500.0,0.00014942,2]
[357083764,1743702640975,-595.08024676,0.00014942,2]
[357083765,1743702640987,-544.33355114,0.00014942,2]
[357083766,1743702640999,-692.7662021,0.00014942,2]
[357083767,1743702641008,-500.0,0.00014942,2]
[357083768,1743702641018,-354.01979844,0.00014942,2]
[357083769,1743702641030,-442.28020156,0.00014942,2]
[357083770,1743702641039,-500.0,0.00014942,2]
[357083771,1743702641048,-1029.85,0.00014942,2]
[357083772,1743702641058,-97.46979843,0.00014942,2]
[357083773,1743702641070,-499.50020157,0.00014942,2]
[357083774,1743702641080,-995.4,0.00014942,2]
[357083775,1743702641095,-500.0,0.00014942,2]
[357083776,1743702641110,-4081.38,0.00014942,2]
[357083777,1743702641120,-575.56,0.00014942,2]
[357083778,1743702641129,-278.66586972,0.00014942,2]
[357083779,1743702641143,-430.08413028,0.00014942,2]
[357083780,1743702641154,-500.0,0.00014942,2]
[357083781,1743702641163,-646.83,0.00014942,2]
[357083782,1743702641173,-500.0,0.00014943,2]
[357083783,1743702641183,-966.32,0.00014943,2]
[357083784,1743702641193,-558.08593701,0.00014943,2]
[357083785,1743702641203,-482.39640487,0.00014943,2]
[357083786,1743702641213,-500.0,0.00014943,2]
[357083787,1743702641223,-500.0,0.00014943,2]
[357083788,1743702641233,-500.0,0.00014943,2]
[357083789,1743702641243,-500.0,0.00014943,2]
[357083790,1743702641253,-603.7,0.00014943,2]
[357083791,1743702641263,-1091.93,0.00014943,2]
[357083792,1743702641272,-931.43,0.00014943,2]
[357083793,1743702641283,-689.73,0.00014943,2]
[357083794,1743702641293,-500.0,0.00014943,2]
[357083795,1743702641303,-678.32,0.00014943,2]
[357083796,1743702641524,-161.95283,0.00014943,2]
[357083797,1743702641547,-161.95283,0.00014943,2]
[357083798,1743702641557,-151.0,0.00014943,2]
[357083799,1743702641567,-151.0,0.00014943,2]
[357083800,1743702641577,-151.0,0.00014943,2]
[357083801,1743702641587,-162.119471,0.00014943,2]
[357083802,1743702641597,-151.0,0.00014943,2]
[357083803,1743702641607,-151.0,0.00014943,2]
[357083804,1743702641616,-198.0557,0.00014943,2]
[357083805,1743702641626,-198.0557,0.00014943,2]
[357083806,1743702641636,-151.0,0.00014943,2]
[357083807,1743702641645,-151.0,0.00014943,2]
[357083808,1743702641655,-151.0,0.00014943,2]
[357083809,1743702641665,-151.0,0.00014943,2]
[357083810,1743702641674,-151.0,0.00014943,2]
[357083811,1743702641684,-151.0,0.00014943,2]
[357083812,1743702641693,-151.0,0.00014943,2]
[357083813,1743702641703,-500.0,0.00015215,2]
[357083814,1743702641714,-636.33788478,0.00015215,2]
[357083815,1743702641724,-560.38,0.00015215,2]
[357083816,1743702641734,-890.05,0.00015215,2]
[357083817,1743702641743,-638.54,0.00015215,2]
[357083818,1743702641753,-500.0,0.00015215,2]
[357083819,1743702641763,-500.0,0.00015215,2]
[357083820,1743702641772,-649.32,0.00015215,2]
[357083821,1743702641782,-1824.55,0.00015215,2]
[357083822,1743702641791,-500.0,0.00015215,2]
[357083823,1743702641801,-500.0,0.00015215,2]
[357083824,1743702641812,-500.0,0.00015215,2]
[357083825,1743702641821,-500.0,0.00015215,2]
[357083826,1743702641831,-500.0,0.00015215,2]
[357083827,1743702641842,-564.96,0.00015215,2]
[357083828,1743702641854,-500.0,0.00015215,2]
[357083829,1743702641864,-580.9,0.00015215,2]
[357083830,1743702641874,-505.42,0.00015215,2]
[357083831,1743702641883,-500.0,0.00015215,2]
[357083832,1743702641893,-953.63,0.00015215,2]
[357083833,1743702641903,-500.0,0.00015215,2]
[357083834,1743702641913,-500.0,0.00015215,2]
[357083835,1743702641923,-500.0,0.00015215,2]
[357083836,1743702641935,-500.0,0.00015215,2]
[357083837,1743702641947,-500.0,0.00015215,2]
[357083838,1743702641957,-500.0,0.00015215,2]
[357083839,1743702641967,-1495.88,0.00015215,2]
[357083840,1743702641977,-649.85,0.00015215,2]
[357083841,1743702641988,-151.0,0.00015215,2]
[357083842,1743702641998,-863.09,0.00015215,2]
[357083843,1743702642009,-500.0,0.00015216,2]
[357083844,1743702642020,-500.0,0.00015216,2]
[357083845,1743702642029,-151.0,0.00015216,2]
[357083846,1743702642039,-151.0,0.00015216,2]
[357083847,1743702642049,-500.0,0.00015216,2]
[357083848,1743702642060,-151.0,0.00015216,2]
[357083849,1743702642070,-151.0,0.00015216,2]
[357083850,1743702642080,-151.0,0.00015216,2]
[357083851,1743702642090,-151.0,0.00015216,2]
[357083852,1743702642099,-500.0,0.00015216,2]
[357083853,1743702642116,-500.0,0.00015216,2]
[357083854,1743702642130,-455.570294,0.00015216,2]
[357083855,1743702642140,-151.0,0.00015216,2]
[357083856,1743702642149,-455.570294,0.00015216,2]
[357083857,1743702642159,-165.36102,0.00015216,2]
[357083858,1743702642168,-151.0,0.00015216,2]
[357083859,1743702642178,-179.24997,0.00015216,2]
[357083860,1743702642187,-179.24997,0.00015216,2]
[357083861,1743702642197,-151.0,0.00015216,2]
[357083862,1743702642207,-151.0,0.00015216,2]
[357083863,1743702642217,-500.0,0.00015216,2]
[357083864,1743702642226,-1015.26118,0.00015216,2]
[357083865,1743702642236,-1015.26118,0.00015216,2]
[357083866,1743702642246,-151.0,0.00015216,2]
[357083867,1743702642255,-500.0,0.00015216,2]
[357083868,1743702642265,-1832.18,0.00015216,2]
[357083869,1743702642275,-500.0,0.00015216,2]